fUSD/lending_fUSD_20240913
["ID","MTS","AMOUNT","RATE_DAILY","PERIOD"]
[338064150,1726259439886,-3707.62,0.00014263,2]
[338064152,1726259439895,-50677.88,0.000143,2]
[338064154,1726259439904,-167.0,0.00014309,2]
[338064156,1726259439913,-3772.61,0.00014322,2]
[338064158,1726259439923,-3759.11,0.00014407,2]
[338064159,1726259439932,-150.0,0.0001442,2]
[338064161,1726259439941,-3801.56,0.0001444,2]
[338064163,1726259439950,-3690.97,0.00014482,2]
[338064165,1726259439959,-1000.0,0.00014521,2]
[338064167,1726259439968,-156.347,0.00014533,2]
[338064169,1726259439977,-3798.83,0.00014533,2]
[338064171,1726259439987,-3783.96,0.00014576,2]
[338064173,1726259439996,-3686.37,0.00014627,2]
[338064175,1726259440005,-577.95410474,0.00014679,2]
[338064178,1726259440027,-1319.20179459,0.00014679,2]
[338064180,1726259440041,-526.41,0.00014679,2]
[338064443,1726259443113,-338.94299958,0.00013866,2]
[338064721,1726259445821,-219.05700042,0.00013866,2]
[338064723,1726259445830,-3154.68646817,0.00014679,2]
[338064725,1726259445839,-3158.65835884,0.00014687,2]
[338066710,1726259592421,315.73,0.00011802,2]
[338066714,1726260140816,154.85,0.00010959,2]
[338066715,1726260314662,316.1,0.00011623,2]
[338066725,1726260631915,-170.59,0.00013,2]
[338066726,1726260631924,-467.94496438,0.00013,2]
[338066727,1726260631936,-542.65503562,0.00013,2]
[338066728,1726260631945,-5.50818022,0.00013,2]
[338066729,1726260631955,-159.61936161,0.00013,2]
[338066730,1726260631965,-300.0,0.00013486,2]
[338066731,1726260631973,-2106.50823905,0.00013487,2]
[338066732,1726260631984,-1552.423596,0.00013487,2]
[338066733,1726260631995,-5792.6601177,0.00013487,2]
[338066734,1726260632006,-600.81924,0.00013487,2]
[338066735,1726260632017,-13837.58880725,0.00013487,2]
[338066736,1726260632026,-161.04,0.00013501,2]
[338066737,1726260632035,-1070.03,0.00013501,2]
[338066738,1726260632044,-484.43,0.00013503,2]
[338066739,1726260632053,-200.0,0.00013511,2]
[338066740,1726260632062,-44.96661583,0.0001352,2]
[338066741,1726260632073,-205.03338417,0.0001352,2]
[338066742,1726260632083,-162.66,0.00013525,2]
[338066743,1726260632092,-250.0,0.00013536,2]
[338066744,1726260632101,-47.42889648,0.00013542,2]
[338066745,1726260632115,-752.57110352,0.00013542,2]
[338066746,1726260632124,-172.39,0.00013597,2]
[338066747,1726260632133,-18.12972214,0.00013597,2]
[338066748,1726260632144,-638.99027786,0.00013597,2]
[338066749,1726260632153,-60.1308631,0.00013619,2]
[338066750,1726260632164,-176.4591369,0.00013619,2]
[338066751,1726260632173,-150.68,0.00013628,2]
[338066752,1726260632182,-1782.29827665,0.00013655,2]
[338066753,1726260632193,-301.2900896,0.00013655,2]
[338066754,1726260632204,-6958.48163375,0.00013655,2]
[338066756,1726260632213,-200.0,0.00013699,2]
[338066758,1726260632222,-156.1,0.00013699,2]
[338066760,1726260632232,-1359.46303178,0.00013699,2]
[338066763,1726260632244,-406.77852015,0.00013699,2]
[338066765,1726260632255,-984.75844807,0.00013699,2]
[338066767,1726260632264,-150.0,0.00013699,2]
[338066769,1726260632272,-316.1,0.00013887,2]
[338066771,1726260632281,-300.0,0.000139,5]
[338066772,1726260632290,-150.0,0.00013964,2]
[338066774,1726260632299,-810.0,0.00013965,2]
[338066776,1726260632308,-558.0,0.00013965,2]
[338066778,1726260632317,-1521.73179142,0.00013965,2]
[338066789,1726260632405,-397.26820858,0.00013965,2]
[338066791,1726260632414,-150.0,0.00013965,2]
[338066793,1726260632424,-22.82179142,0.00013965,2]
[338066795,1726260632434,-675.13720858,0.00013965,2]
[338066797,1726260632444,-700.0,0.00014,5]
[338066799,1726260632453,-150.0,0.00014059,2]
[338066801,1726260632463,-1000.0,0.000141,5]
[338066803,1726260632472,-1400.0,0.000142,5]
[338066805,1726260632481,-151.63531127,0.00014247,2]
[338066807,1726260632492,-381.06468873,0.00014247,2]
[338066809,1726260632502,-156.348,0.00014247,2]
[338066811,1726260632511,-120.83731127,0.00014247,2]
[338066946,1726260637930,-261.48322673,0.00014247,2]
[338066947,1726260637939,-1800.0,0.000143,5]
[338066948,1726260637948,-180.49,0.00014306,2]
[338066949,1726260637957,-3817.64,0.00014362,2]
[338066950,1726260637967,-300.0,0.000144,5]
[338066951,1726260637976,-150.0,0.0001442,2]
[338066952,1726260637985,-316.555046,0.00014445,2]
[338066953,1726260637995,-3807.1,0.0001447,2]
[338066954,1726260638004,-300.0,0.000145,5]
[338066955,1726260638016,-1000.0,0.00014521,2]
[338066956,1726260638025,-300.0,0.000146,5]
[338066957,1726260638035,-3814.18,0.00014606,2]
[338066958,1726260638045,-559.87164116,0.00014687,2]
[338066959,1726260638054,-1099.46368267,0.00014687,2]
[338066960,1726260638076,-592.08569065,0.00014687,2]
[338066961,1726260638087,-240.06932668,0.00014687,2]
[338066962,1726260638096,-300.0,0.000147,5]
[338066963,1726260638106,-33.21356382,0.00014756,2]
[338066964,1726260638117,-594.5,0.00014756,2]
[338066965,1726260638247,-450.87290596,0.00014756,2]
[338066966,1726260638258,-1851.34130064,0.00014756,2]
[338066967,1726260638269,-729.82228752,0.00014756,2]
[338066968,1726260638282,-47.28994206,0.00014756,2]
[338066969,1726260638292,-242.11032084,0.00014775,2]
[338066970,1726260638303,-307.44868915,0.00014775,2]
[338066971,1726260638312,-150.0,0.0001478,2]
[338066972,1726260638323,-256.07220206,0.00014782,2]
[338066974,1726260638334,-163.92779794,0.00014782,2]
[338066976,1726260638344,-1013.07220206,0.0001479,2]
[338066983,1726260638401,-464.49215407,0.0001479,2]
[338066985,1726260638412,-242.75693628,0.0001479,2]
[338066987,1726260638422,-860.35,0.00014792,2]
[338066989,1726260638432,-251.159,0.00014792,2]
[338066991,1726260638441,-8781.39405718,0.000148,2]
[338066993,1726260638452,-8374.80424282,0.000148,2]
[338066995,1726260638462,-3071.8389,0.000148,2]
[338066997,1726260638471,-1081.99419368,0.000148,2]
[338066999,1726260638481,-3000.0,0.000148,2]
[338067001,1726260638491,-176.39250946,0.000148,2]
[338067003,1726260638500,-848.0,0.000148,5]
[338067005,1726260638510,-1720.3212924,0.00014802,2]
[338067007,1726260638519,-556.12975376,0.00014814,2]
[338067009,1726260638530,-281.55,0.00014814,2]
[338067011,1726260638542,-882.64153864,0.00014814,2]
[338067013,1726260638551,-3736.3,0.00014818,2]
[338067015,1726260638561,-176.39250943,0.00014825,2]
[338067017,1726260638570,-1720.3212924,0.00014827,2]
[338067019,1726260638579,-112.64905896,0.00014831,2]
[338067021,1726260638591,-358.33485164,0.00014831,2]
[338067023,1726260638602,-2183.16426548,0.00014831,2]
[338067025,1726260638613,-1056.51182392,0.00014831,2]
[338067027,1726260638624,-1720.3212924,0.00014839,2]
[338067029,1726260638633,-176.39250943,0.0001485,2]
[338067031,1726260638642,-1720.3212924,0.00014851,2]
[338067033,1726260638651,-1720.3212924,0.00014863,2]
[338067035,1726260638660,-321.64505271,0.0001487,2]
[338067037,1726260638669,-176.39250943,0.00014875,2]
[338067039,1726260638678,-1720.3212924,0.00014876,2]
[338067041,1726260638688,-1720.3212924,0.00014888,2]
[338067043,1726260638697,-246.59391934,0.0001489,2]
[338067045,1726260638706,-500.0,0.00014899,2]
[338067047,1726260638716,-500.0,0.00014899,2]
[338067049,1726260638725,-320.0212,0.000149,2]
[338067050,1726260638734,-176.39250943,0.000149,2]
[338067052,1726260638743,-1720.3212924,0.000149,2]
[338067054,1726260638752,-153.04,0.000149,31]
[338067056,1726260638762,-153.04,0.000149,31]
[338067058,1726260638771,-153.04,0.000149,31]
[338067060,1726260638780,-153.04,0.000149,31]
[338067062,1726260638789,-153.04,0.000149,31]
[338067064,1726260638799,-153.04,0.000149,31]
[338067065,1726260638808,-153.04,0.000149,31]
[338067067,1726260638817,-946.4536596,0.000149,2]
[338067069,1726260638826,-430.69,0.0001495,3]
[338067071,1726260638836,-2472.6899381,0.0001496,3]
[338067073,1726260638847,-3524.79836481,0.0001496,3]
[338067076,1726260638858,-703.01355159,0.0001496,3]
[338067078,1726260638871,-19498.3162587,0.0001496,3]
[338067080,1726260638891,-10018.7291613,0.0001496,3]
[338067082,1726260638902,-822.49017547,0.0001496,3]
[338067085,1726260638925,-1346.82658849,0.0001496,3]
[338067088,1726260638937,-2789.40226956,0.0001496,3]
[338067174,1726260639927,-614.42952318,0.0001496,3]
[338067177,1726260639940,-975.50742252,0.0001496,3]
[338067179,1726260639952,-807.664508,0.0001496,3]
[338067188,1726260640036,-11374.44973514,0.0001496,3]
[338067190,1726260640049,-2277.81106939,0.0001496,3]
[338067196,1726260640093,-8646.86063141,0.0001496,3]
[338067198,1726260640106,-470.89476816,0.0001496,3]
[338067200,1726260640119,-485.3980518,0.0001496,3]
[338067247,1726260640575,-362.06086022,0.000149,2]
[338067249,1726260640586,-15253.91086709,0.0001496,3]
[338067485,1726260643032,-500.0,0.00014899,2]
[338067487,1726260643043,-211.82512358,0.00014899,2]
[338067489,1726260643056,-288.17487642,0.00014899,2]
[338067490,1726260643066,-500.0,0.00014899,2]
[338067492,1726260643076,-421.82512358,0.00014899,2]
[338067540,1726260643554,-78.17487642,0.00014899,2]
[338067542,1726260643564,-1107.61164532,0.0001496,3]
[338067773,1726260646047,-167.0,0.00014418,2]
[338067776,1726260646057,-500.0,0.00014899,2]
[338067778,1726260646067,-500.0,0.00014899,2]
[338067780,1726260646076,-134.37556257,0.0001496,3]
[338067787,1726260646156,-2629.70335,0.0001496,3]
[338067789,1726260646167,-2695.8483424,0.0001496,3]
[338067794,1726260646213,-21409.75084274,0.0001496,3]
[338069944,1726260807882,174.79,0.00010959,2]
[338069945,1726260922730,315.17,0.00011678,2]
[338069947,1726261427401,162.78,0.00010959,2]
[338069948,1726261692610,299.41,0.00011593,2]
[338069953,1726261832159,-153.53,0.00013,2]
[338069954,1726261832168,-157.73970547,0.00013453,2]
[338069955,1726261832178,-250.0,0.00013519,2]
[338069956,1726261832187,-250.0,0.00013521,2]
[338069957,1726261832196,-172.39,0.00013532,2]
[338069958,1726261832206,-204.57,0.00013537,2]
[338069959,1726261832215,-360.0,0.00013553,2]
[338069960,1726261832225,-318.37,0.00013554,2]
[338069961,1726261832234,-514.89,0.0001363,2]
[338069968,1726261838277,-125.11,0.0001363,2]
[338069969,1726261838287,-300.0,0.00013698,2]
[338069970,1726261838296,-90.96115909,0.00013699,2]
[338069971,1726261838333,-59.03884091,0.00013699,2]
[338069972,1726261838343,-157.65,0.00013699,2]
[338069973,1726261838353,-200.0,0.00013699,2]
[338069974,1726261838363,-1988.35,0.00013699,2]
[338069975,1726261838372,-150.0,0.00013846,2]
[338069976,1726261838382,-299.41,0.00013857,2]
[338069977,1726261838390,-700.0,0.000139,5]
[338069978,1726261838399,-167.0,0.0001394,2]
[338069979,1726261838408,-558.0,0.00013986,2]
[338069980,1726261838417,-738.589,0.00013986,2]
[338069981,1726261838426,-533.273,0.00013986,2]
[338069982,1726261838435,-1400.0,0.00014,5]
[338069983,1726261838454,-150.0,0.00014059,2]
[338069984,1726261838463,-2100.0,0.000141,5]
[338069985,1726261838472,-2800.0,0.000142,5]
[338069986,1726261838481,-3500.0,0.000143,5]
[338069987,1726261838490,-700.0,0.000144,5]
[338069988,1726261838499,-3695.39,0.00014418,2]
[338069989,1726261838508,-150.0,0.0001442,2]
[338069990,1726261838517,-700.0,0.000145,5]
[338069991,1726261838525,-156.348,0.000145,2]
[338069992,1726261838535,-1000.0,0.00014521,2]
[338069993,1726261838544,-361.172627,0.00014521,2]
[338069994,1726261838553,-150.0,0.00014521,2]
[338069995,1726261838563,-700.0,0.000146,5]
[338069996,1726261838573,-157.73970547,0.000147,2]
[338069997,1726261838582,-700.0,0.000147,5]
[338069998,1726261838590,-1695.34251,0.0001475,2]
[338069999,1726261838600,-150.0,0.0001478,2]
[338070000,1726261838609,-231.175,0.00014795,2]
[338070001,1726261838618,-769.051,0.00014795,2]
[338070002,1726261838821,-3000.0,0.000148,2]
[338070003,1726261838833,-836.0,0.000148,5]
[338070004,1726261838842,-500.0,0.00014873,2]
[338070005,1726261838852,-2277.2494,0.00014877,2]
[338070006,1726261838861,-52521.2729901,0.00014879,3]
[338070007,1726261838872,-500.0,0.00014888,2]
[338070008,1726261838881,-500.0,0.00014888,2]
[338070009,1726261838891,-460.41407985,0.00014888,2]
[338070010,1726261838901,-500.0,0.00014888,2]
[338070011,1726261838910,-506.53,0.00014888,2]
[338070012,1726261838920,-500.0,0.00014888,2]
[338070013,1726261838932,-500.0,0.00014888,2]
[338070014,1726261838944,-500.0,0.00014888,2]
[338070015,1726261838954,-500.0,0.00014888,2]
[338070016,1726261838963,-500.0,0.00014888,2]
[338070017,1726261838972,-500.0,0.00014888,2]
[338070018,1726261838982,-500.0,0.00014888,2]
[338070019,1726261838991,-501.02215149,0.00014888,2]
[338070020,1726261839000,-500.0,0.00014888,2]
[338070021,1726261839009,-500.0,0.00014888,2]
[338070022,1726261839019,-500.0,0.00014888,2]
[338070023,1726261839028,-398.66049022,0.00014888,2]
[338070024,1726261839038,-500.0,0.00014888,2]
[338070025,1726261839047,-500.0,0.00014888,2]
[338070026,1726261839056,-500.0,0.00014888,2]
[338070027,1726261839066,-500.0,0.00014888,2]
[338070028,1726261839076,-500.0,0.00014888,2]
[338070029,1726261839085,-500.0,0.00014888,2]
[338070030,1726261839095,-617.66,0.00014888,2]
[338070031,1726261839104,-500.0,0.00014888,2]
[338070032,1726261839113,-637.68,0.00014888,2]
[338070033,1726261839122,-500.0,0.00014888,2]
[338070034,1726261839131,-500.0,0.00014888,2]
[338070035,1726261839140,-500.0,0.00014888,2]
[338070036,1726261839150,-500.0,0.00014888,2]
[338070037,1726261839159,-500.0,0.00014888,2]
[338070038,1726261839168,-500.0,0.00014888,2]
[338070039,1726261839177,-500.0,0.00014888,2]
[338070040,1726261839186,-498.06,0.00014888,2]
[338070041,1726261839199,-500.0,0.00014888,2]
[338070042,1726261839209,-500.0,0.00014888,2]
[338070043,1726261839218,-500.0,0.00014888,2]
[338070044,1726261839227,-500.0,0.00014888,2]
[338070045,1726261839237,-501.32,0.00014888,2]
[338070046,1726261839246,-500.0,0.00014888,2]
[338070047,1726261839256,-500.0,0.00014888,2]
[338070048,1726261839265,-500.0,0.00014888,2]
[338070049,1726261839274,-753.93,0.00014888,2]
[338070050,1726261839283,-500.0,0.00014888,2]
[338070051,1726261839292,-500.0,0.00014888,2]
[338070052,1726261839302,-500.0,0.00014888,2]
[338070053,1726261839311,-500.0,0.00014888,2]
[338070054,1726261839320,-500.0,0.00014888,2]
[338070055,1726261839330,-500.0,0.00014888,2]
[338070056,1726261839340,-500.0,0.00014888,2]
[338070057,1726261839349,-500.0,0.00014888,2]
[338070058,1726261839359,-500.0,0.00014888,2]
[338070059,1726261839368,-500.0,0.00014888,2]
[338070060,1726261839378,-500.0,0.00014888,2]
[338070061,1726261839388,-336882.5913,0.00014889,2]
[338070062,1726261839398,-1124.9997,0.0001489,2]
[338070063,1726261839407,-202.9393343,0.000149,2]
[338070064,1726261839417,-320.0212,0.000149,2]
[338070065,1726261839427,-153.11,0.000149,31]
[338070066,1726261839439,-153.11,0.000149,31]
[338070067,1726261839451,-153.11,0.000149,31]
[338070068,1726261839461,-153.11,0.000149,31]
[338070069,1726261839470,-153.11,0.000149,31]
[338070070,1726261839480,-153.11,0.000149,31]
[338070071,1726261839489,-153.11,0.000149,31]
[338070072,1726261839498,-249.80413749,0.000149,2]
[338070073,1726261839508,-3696.65,0.00014912,2]
[338070074,1726261839516,-160.28,0.00014958,2]
[338070075,1726261839526,-500.0,0.0001496,2]
[338070076,1726261839535,-543.1,0.0001496,2]
[338070077,1726261839545,-503.22688174,0.0001496,2]
[338070078,1726261839554,-26260.636495,0.0001496,3]
[338070079,1726261839563,-3711.52,0.00014961,2]
[338070080,1726261839574,-13130.3182475,0.00014969,3]
[338070081,1726261839583,-13130.3182475,0.00014969,3]
[338070082,1726261839593,-500.0,0.00014969,2]
[338070083,1726261839603,-500.0,0.00014969,2]
[338070084,1726261839613,-500.0,0.00014969,2]
[338070085,1726261839623,-500.0,0.00014969,2]
[338070086,1726261839632,-500.0,0.00014969,2]
[338070087,1726261839642,-500.0,0.00014969,2]
[338070088,1726261839652,-13130.3182475,0.00014969,3]
[338070089,1726261839661,-500.0,0.00014973,2]
[338070090,1726261839671,-500.0,0.00014978,2]
[338070091,1726261839680,-500.0,0.00014978,2]
[338070092,1726261839690,-500.0,0.00014978,2]
[338070093,1726261839704,-500.0,0.00014978,2]
[338070094,1726261839714,-500.0,0.00014978,2]
[338070095,1726261839723,-500.0,0.00014978,2]
[338070096,1726261839733,-500.0,0.00014978,2]
[338070097,1726261839743,-13130.3182475,0.00014978,3]
[338070098,1726261839753,-13130.3182475,0.00014979,3]
[338070099,1726261839762,-500.0,0.00014979,2]
[338070100,1726261839771,-506.53,0.00014979,2]
[338070101,1726261839781,-500.0,0.00014979,2]
[338070102,1726261839792,-500.0,0.00014979,2]
[338070103,1726261839802,-436.45,0.00014979,2]
[338070104,1726261839811,-500.0,0.00014979,2]
[338070105,1726261839822,-174.8703869,0.00014979,2]
[338070106,1726261839834,-500.0,0.00014979,2]
[338070107,1726261839844,-500.0,0.00014979,2]
[338070108,1726261839854,-500.0,0.00014979,2]
[338070109,1726261839864,-518.53344338,0.00014979,2]
[338070110,1726261839875,-500.17,0.00014979,2]
[338070111,1726261839885,-500.0,0.00014979,2]
[338070112,1726261839895,-500.0,0.00014979,2]
[338070113,1726261839906,-603.11,0.00014979,2]
[338070114,1726261839917,-596.84,0.00014979,2]
[338070115,1726261839927,-528.88,0.00014979,2]
[338070116,1726261839938,-314.71,0.00014979,2]
[338070117,1726261839952,-500.0,0.00014979,2]
[338070118,1726261839962,-298.39,0.00014979,2]
[338070119,1726261839972,-388.1,0.00014979,2]
[338070120,1726261839981,-500.0,0.00014979,2]
[338070121,1726261839991,-753.93,0.00014979,2]
[338070122,1726261840000,-500.0,0.00014979,2]
[338070123,1726261840010,-500.0,0.00014979,2]
[338070124,1726261840019,-161.46,0.00014979,2]
[338070125,1726261840028,-326.81,0.00014979,2]
[338070126,1726261840038,-13130.3182475,0.00014979,3]
[338070127,1726261840047,-15908.0769108,0.00014979,3]
[338070128,1726261840056,-52521.2729901,0.0001498,3]
[338070129,1726261840066,-63632.3076431,0.0001498,3]
[338070130,1726261840075,-65651.5912376,0.0001498,3]
[338070131,1726261840085,-47724.2307323,0.0001498,3]
[338070132,1726261840094,-15908.0769108,0.00014988,3]
[338070133,1726261840103,-26260.636495,0.00014989,3]
[338070134,1726261840113,-31816.1538215,0.00014989,3]
[338070135,1726261840123,-500.0,0.00014989,2]
[338070136,1726261840133,-306.17087154,0.00014989,2]
[338070137,1726261840142,-506.53,0.00014989,2]
[338070138,1726261840152,-506.53,0.00014989,2]
[338070139,1726261840161,-500.0,0.00014989,2]
[338070140,1726261840171,-645.42618312,0.00014989,2]
[338070141,1726261840180,-405.93,0.00014989,2]
[338070142,1726261840189,-500.0,0.00014989,2]
[338070143,1726261840203,-500.0,0.00014989,2]
[338070144,1726261840212,-500.0,0.00014989,2]
[338070145,1726261840221,-500.0,0.00014989,2]
[338070146,1726261840230,-610.83135858,0.00014989,2]
[338070147,1726261840240,-288.9,0.00014989,2]
[338070148,1726261840249,-500.0,0.00014989,2]
[338070149,1726261840258,-500.0,0.00014989,2]
[338070150,1726261840267,-264.89,0.00014989,2]
[338070151,1726261840277,-500.0,0.00014989,2]
[338070152,1726261840286,-500.0,0.00014989,2]
[338070153,1726261840295,-500.0,0.00014989,2]
[338070154,1726261840305,-500.0,0.00014989,2]
[338070155,1726261840314,-753.93,0.00014989,2]
[338070156,1726261840323,-753.93,0.00014989,2]
[338070157,1726261840333,-520.53,0.00014989,2]
[338070158,1726261840342,-527.03,0.00014989,2]
[338070159,1726261840351,-500.0,0.00014989,2]
[338070160,1726261840361,-500.0,0.00014989,2]
[338070161,1726261840370,-500.0,0.00014989,2]
[338070162,1726261840379,-500.0,0.00014989,2]
[338070163,1726261840388,-500.0,0.00014989,2]
[338070164,1726261840398,-500.0,0.00014989,2]
[338070165,1726261840408,-40451.29797545,0.0001499,2]
[338070166,1726261840417,-39390.9547426,0.0001499,3]
[338070167,1726261840427,-111356.538375,0.0001499,3]
[338070168,1726261840436,-127264.615286,0.0001499,3]
[338070169,1726261840450,-160.28,0.0001499,2]
[338070170,1726261840459,-160.28,0.0001499,2]
[338070171,1726261840468,-160.28,0.0001499,2]
[338070172,1726261840478,-160.28,0.0001499,2]
[338070173,1726261840487,-160.28,0.0001499,2]
[338070174,1726261840496,-160.28,0.0001499,2]
[338070175,1726261840505,-160.28,0.0001499,2]
[338070176,1726261840514,-193.70639367,0.00014993,2]
[338070177,1726261840524,-275.4935667,0.00014993,2]
[338070178,1726261840533,-500.0,0.00014997,2]
[338070179,1726261840543,-500.0,0.00014997,2]
[338070180,1726261840552,-500.0,0.00014997,2]
[338070181,1726261840562,-506.53,0.00014998,2]
[338070182,1726261840571,-203.09,0.00014998,2]
[338070183,1726261840581,-500.0,0.00014998,2]
[338070184,1726261840590,-500.0,0.00014998,2]
[338070186,1726261840599,-500.0,0.00014998,2]
[338070188,1726261840609,-500.0,0.00014998,2]
[338070190,1726261840618,-753.93,0.00014998,2]
[338070192,1726261840628,-500.0,0.00014998,2]
[338070194,1726261840637,-500.0,0.00014998,2]
[338070196,1726261840646,-500.0,0.00014998,2]
[338070198,1726261840656,-508.0,0.00014999,2]
[338070200,1726261840666,-1078.09317374,0.00014999,5]
[338070202,1726261840675,-1078.09317374,0.00014999,5]
[338070204,1726261840684,-1324.33838781,0.00014999,5]
[338070205,1726261840696,-1324.33838781,0.00014999,5]
[338070207,1726261840705,-198.79323009,0.00014999,5]
[338070208,1726261840714,-201.20676991,0.00014999,5]
[338070209,1726261840723,-506.53,0.00014999,2]
[338070210,1726261840733,-506.53,0.00014999,2]
[338070211,1726261840742,-506.53,0.00014999,2]
[338070212,1726261840752,-506.53,0.00014999,2]
[338070213,1726261840762,-506.53,0.00014999,2]
[338070214,1726261840771,-506.53,0.00014999,2]
[338070215,1726261840780,-506.53,0.00014999,2]
[338070216,1726261840790,-506.53,0.00014999,2]
[338070217,1726261840800,-506.53,0.00014999,2]
[338070218,1726261840809,-506.53,0.00014999,2]
[338070219,1726261840819,-506.53,0.00014999,2]
[338070220,1726261840832,-506.53,0.00014999,2]
[338070221,1726261840842,-506.53,0.00014999,2]
[338070222,1726261840851,-506.53,0.00014999,2]
[338070223,1726261840860,-506.53,0.00014999,2]
[338070224,1726261840870,-506.53,0.00014999,2]
[338070226,1726261840880,-506.53,0.00014999,2]
[338070228,1726261840890,-506.53,0.00014999,2]
[338070230,1726261840900,-506.70696315,0.00014999,2]
[338070232,1726261840910,-263.73,0.00014999,2]
[338070234,1726261840920,-500.0,0.00014999,2]
[338070236,1726261840929,-500.0,0.00014999,2]
[338070238,1726261840939,-500.0,0.00014999,2]
[338070240,1726261840951,-500.0,0.00014999,2]
[338070242,1726261840960,-265.96721825,0.00014999,2]
[338070244,1726261840970,-500.0,0.00014999,2]
[338070246,1726261840979,-543.47652854,0.00014999,2]
[338070248,1726261840988,-500.0,0.00014999,2]
[338070250,1726261840998,-500.0,0.00014999,2]
[338070252,1726261841007,-500.0,0.00014999,2]
[338070254,1726261841018,-500.0,0.00014999,2]
[338070256,1726261841028,-500.0,0.00014999,2]
[338070258,1726261841037,-500.0,0.00014999,2]
[338070260,1726261841046,-500.0,0.00014999,2]
[338070261,1726261841054,-500.0,0.00014999,2]
[338070263,1726261841063,-500.0,0.00014999,2]
[338070265,1726261841073,-500.0,0.00014999,2]
[338070267,1726261841082,-198.5,0.00014999,2]
[338070269,1726261841092,-500.0,0.00014999,2]
[338070271,1726261841101,-500.0,0.00014999,2]
[338070273,1726261841110,-500.0,0.00014999,2]
[338070275,1726261841120,-500.0,0.00014999,2]
[338070277,1726261841129,-194.22,0.00014999,2]
[338070279,1726261841138,-753.93,0.00014999,2]
[338070281,1726261841147,-753.93,0.00014999,2]
[338070283,1726261841155,-753.93,0.00014999,2]
[338070285,1726261841165,-753.93,0.00014999,2]
[338070287,1726261841174,-753.93,0.00014999,2]
[338070289,1726261841183,-753.93,0.00014999,2]
[338070291,1726261841194,-753.93,0.00014999,2]
[338070293,1726261841203,-753.93,0.00014999,2]
[338070295,1726261841212,-753.93,0.00014999,2]
[338070297,1726261841221,-753.93,0.00014999,2]
[338070299,1726261841231,-753.93,0.00014999,2]
[338070301,1726261841240,-753.93,0.00014999,2]
[338070303,1726261841249,-753.93,0.00014999,2]
[338070305,1726261841258,-753.93,0.00014999,2]
[338070307,1726261841267,-753.93,0.00014999,2]
[338070309,1726261841276,-753.93,0.00014999,2]
[338070311,1726261841286,-753.93,0.00014999,2]
[338070313,1726261841296,-753.93,0.00014999,2]
[338070315,1726261841306,-754.07,0.00014999,2]
[338070317,1726261841315,-500.0,0.00014999,2]
[338070319,1726261841324,-500.0,0.00014999,2]
[338070321,1726261841334,-500.0,0.00014999,2]
[338070323,1726261841344,-500.0,0.00014999,2]
[338070325,1726261841353,-500.0,0.00014999,2]
[338070327,1726261841363,-500.0,0.00014999,2]
[338070329,1726261841372,-500.0,0.00014999,2]
[338070331,1726261841381,-500.0,0.00014999,2]
[338070333,1726261841390,-500.0,0.00014999,2]
[338070335,1726261841399,-500.0,0.00014999,2]
[338070337,1726261841409,-500.0,0.00014999,2]
[338070338,1726261841418,-352.06,0.00014999,2]